bitfinex/quotes_SOLUSD_20250111
["timestamp","ask_amount","ask_price","bid_price","bid_amount"]
[1736607800303,0.06461718,188.24,188.22,28.86361511]
[1736607800811,0.06461718,188.24,188.23,8.86361511]
[1736607801334,0.06461718,188.24,188.23,32.64049911]
[1736607804322,0.06461718,188.24,188.22,20.0]
[1736607804532,0.06461718,188.24,188.22,28.86361511]
[1736607807514,0.06461718,188.24,188.22,8.86361511]
[1736607810222,0.06461718,188.24,188.23,8.86361511]
[1736607811536,0.06461718,188.24,188.23,32.64049911]
[1736607815059,1.21739548,188.32,188.25,8.86361511]
[1736607816452,1.21739548,188.32,188.22,144.26361511]
[1736607819637,1.21739548,188.32,188.23,23.776884]
[1736607820043,1.21739548,188.32,188.23,32.64049911]
[1736607821757,1.21739548,188.32,188.23,8.86361511]
[1736607824942,1.21739548,188.32,188.22,32.64049911]
[1736607825359,1.21739548,188.32,188.22,8.86361511]
[1736607825857,1.21739548,188.32,188.23,32.64049911]
[1736607826161,1.21739548,188.32,188.24,8.86361511]
[1736607826365,1.21739548,188.32,188.25,8.86361511]
[1736607826571,1.21739548,188.32,188.23,8.86361511]
[1736607827873,1.21739548,188.32,188.25,23.776884]
[1736607828048,1.21739548,188.32,188.25,32.64049911]
[1736607830270,1.21739548,188.32,188.25,23.776884]
[1736607835653,1.21739548,188.32,188.23,13.2816]
[1736607835864,1.21739548,188.32,188.25,23.776884]
[1736607840382,1.21739548,188.32,188.24,23.776884]
[1736607840588,1.21739548,188.32,188.24,32.64049911]
[1736607840756,1.21739548,188.32,188.22,135.4]
[1736607841083,1.21739548,188.32,188.22,144.26361511]
[1736607841457,1.21739548,188.32,188.22,8.86361511]
[1736607841665,1.21739548,188.32,188.23,23.776884]
[1736607842576,1.21739548,188.32,188.23,32.64049911]
[1736607842780,1.21739548,188.32,188.23,8.86361511]
[1736607843286,1.21739548,188.32,188.23,23.776884]
[1736607844362,1.21739548,188.32,188.23,8.86361511]
[1736607844797,1.153483,188.32,188.25,8.86361511]
[1736607845567,1.153483,188.32,188.24,8.86361511]
[1736607849198,1.153483,188.32,188.25,8.86361511]
[1736607849491,1.153483,188.32,188.23,23.776884]
[1736607849698,1.153483,188.32,188.25,8.86361511]
[1736607851080,1.153483,188.32,188.26,8.86361511]
[1736607851884,6.0,188.34,188.28,8.86361511]
[1736607852216,6.0,188.34,188.29,8.86361511]
[1736607853403,6.0,188.34,188.28,8.86361511]
[1736607853895,1.5241,188.37,188.3,8.86361511]
[1736607854073,1.5241,188.37,188.31,8.86361511]
[1736607856397,1.5241,188.37,188.3,20.0]
[1736607856597,1.5241,188.37,188.3,28.86361511]
[1736607857592,1.5241,188.37,188.31,8.86361511]
[1736607858408,1.5241,188.37,188.32,8.86361511]
[1736607858579,1.5241,188.37,188.31,8.86361511]
[1736607858900,1.5241,188.37,188.3,20.0]
[1736607858901,1.5241,188.37,188.3,28.86361511]
[1736607861203,1.5241,188.37,188.25,0.79628084]
[1736607861375,0.02909979,188.36,188.28,8.86361511]
[1736607861876,0.02909979,188.36,188.29,8.86361511]
[1736607862380,0.02909979,188.36,188.3,8.86361511]
[1736607862569,0.02909979,188.36,188.31,8.86361511]
[1736607864909,0.02909979,188.36,188.3,8.86361511]
[1736607865605,0.02909979,188.36,188.32,8.86361511]
[1736607866994,0.02909979,188.36,188.31,8.86361511]
[1736607867187,0.02909979,188.36,188.29,23.776884]
[1736607867188,0.02909979,188.36,188.35,8.86361511]
[1736607867985,6.4504,188.41,188.35,8.86361511]
[1736607868503,1.69378458,188.43,188.36,23.776884]
[1736607868710,1.69378458,188.43,188.36,8.86361511]
[1736607869009,1.69378458,188.43,188.37,8.86361511]
[1736607870399,0.12868458,188.43,188.37,8.86361511]
[1736607870710,0.12868458,188.43,188.38,8.86361511]
[1736607871494,0.12868458,188.43,188.37,8.86361511]
[1736607872802,5.65308458,188.46,188.37,8.86361511]
[1736607872999,5.65308458,188.46,188.38,32.64049911]
[1736607873216,1.5651,188.47,188.41,8.86361511]
[1736607874320,1.5651,188.47,188.42,8.86361511]
[1736607874522,20.0,188.5,188.42,8.86361511]
[1736607875117,1.6189,188.52,188.42,8.86361511]
[1736607875321,1.6189,188.52,188.44,8.86361511]
[1736607875631,1.6189,188.52,188.43,8.86361511]
[1736607876098,1.6189,188.52,188.44,8.86361511]
[1736607876414,1.6189,188.52,188.45,8.86361511]
[1736607877623,1.6189,188.52,188.43,8.86361511]
[1736607879010,1.6189,188.52,188.44,8.86361511]
[1736607879423,1.6189,188.52,188.43,8.86361511]
[1736607879598,1.6189,188.52,188.42,20.0]
[1736607879792,20.0,188.51,188.4,8.86361511]
[1736607880336,20.0,188.51,188.41,8.86361511]
[1736607880813,20.0,188.51,188.42,8.86361511]
[1736607881206,20.0,188.51,188.41,8.86361511]
[1736607883029,20.0,188.51,188.4,8.86361511]
[1736607884202,20.0,188.51,188.41,8.86361511]
[1736607884413,1.6189,188.52,188.41,8.86361511]
[1736607885701,1.6189,188.52,188.4,8.86361511]
[1736607885896,1.6189,188.52,188.38,13.2709]
[1736607885897,20.0,188.51,188.38,13.2709]
[1736607886129,20.0,188.51,188.39,8.86361511]
[1736607887524,6.2748,188.5,188.39,8.86361511]
[1736607888415,6.2748,188.5,188.4,8.86361511]
[1736607891619,1.5537,188.49,188.38,13.2709]
[1736607891833,1.5537,188.49,188.38,22.13451511]
[1736607892132,1.5537,188.49,188.39,8.86361511]
[1736607892717,0.5537,188.49,188.39,8.86361511]
[1736607893317,0.5537,188.49,188.4,8.86361511]
[1736607894640,0.5537,188.49,188.36,13.2719]
[1736607894641,0.5537,188.49,188.39,8.86361511]
[1736607900835,0.5537,188.49,188.42,8.86361511]
[1736607920140,0.5537,188.49,188.41,8.86361511]
[1736607922356,0.5537,188.49,188.36,13.2724]
[1736607922546,0.5537,188.49,188.36,22.13601511]
[1736607922547,6.3573,188.46,188.36,22.13601511]
[1736607924331,1.5986,188.45,188.36,22.13601511]
[1736607926966,1.5986,188.45,188.33,8.86361511]
[1736607927846,6.2229,188.44,188.33,8.86361511]
[1736607928547,6.2229,188.44,188.34,8.86361511]
[1736607930066,6.2229,188.44,188.33,28.86361511]
[1736607930569,6.2229,188.44,188.33,20.0]
[1736607931066,20.0,188.37,188.26,13.2789]
[1736607931265,7.8877,188.36,188.25,8.07168232]
[1736607931464,7.8877,188.36,188.25,16.93529743]
[1736607931665,7.8877,188.36,188.25,8.86361511]
[1736607931868,7.8877,188.36,188.24,8.86361511]
[1736607933674,7.8877,188.36,188.25,8.86361511]
[1736607936152,7.8877,188.36,188.22,13.2816]
[1736607936481,1.6631,188.42,188.33,8.86361511]
[1736607937340,1.6631,188.42,188.32,8.86361511]
[1736607940693,1.6631,188.42,188.33,8.86361511]
[1736607946388,1.6631,188.42,188.29,23.776884]
[1736607946686,1.6631,188.42,188.33,8.86361511]
[1736607947065,1.6631,188.42,188.35,8.86361511]
[1736607947288,1.6631,188.42,188.36,8.86361511]
[1736607949495,1.588,188.46,188.39,8.86361511]
[1736607949665,1.588,188.46,188.4,8.86361511]
[1736607950288,1.588,188.51,188.43,8.86361511]
[1736607953679,1.588,188.51,188.44,8.86361511]
[1736607954797,1.588,188.51,188.45,8.86361511]
[1736607956799,1.588,188.51,188.46,8.86361511]
[1736607957585,0.06439225,188.53,188.46,8.86361511]
[1736607959099,0.06439225,188.53,188.45,8.86361511]
[1736607960708,6.90504312,188.56,188.45,8.86361511]
[1736607962898,5.3036,188.55,188.42,8.86361511]
[1736607963403,5.3036,188.55,188.44,8.86361511]
[1736607964510,5.3036,188.55,188.43,8.86361511]
[1736607967694,5.3036,188.55,188.42,8.86361511]
[1736607968289,20.0,188.52,188.4,8.86361511]
[1736607968691,7.6726,188.51,188.39,8.86361511]
[1736607969690,7.6726,188.51,188.38,8.86361511]
[1736607970093,5.305,188.5,188.38,8.86361511]
[1736607970718,5.305,188.5,188.34,1.6049]
[1736607970719,20.0,188.46,188.34,14.8784]
[1736607970887,20.0,188.46,188.36,8.86361511]
[1736607971401,1.5836,188.45,188.35,8.86361511]
[1736607971604,1.5836,188.45,188.36,8.86361511]
[1736607972014,1.5836,188.45,188.34,14.8784]
[1736607972015,21.5836,188.45,188.34,1.6049]
[1736607972330,21.5836,188.45,188.35,8.86361511]
[1736607974214,21.5836,188.45,188.36,8.86361511]
[1736607975189,21.5836,188.45,188.35,8.86361511]
[1736607975398,21.51976886,188.45,188.35,8.86361511]
[1736607976120,21.51976886,188.45,188.34,1.6049]
[1736607976121,21.51976886,188.45,188.36,8.86361511]
[1736607977102,21.51976886,188.45,188.35,8.86361511]
[1736607977803,6.0337,188.44,188.35,8.86361511]
[1736607978026,6.0337,188.44,188.34,8.86361511]
[1736607993751,6.0337,188.44,188.35,8.86361511]
[1736607993913,6.0337,188.44,188.38,8.86361511]
[1736607996051,6.0337,188.44,188.37,8.86361511]
[1736607996350,6.0337,188.44,188.33,23.776884]
[1736607996550,6.0337,188.44,188.32,13.2749]
[1736607996741,6.0337,188.44,188.34,8.86361511]
[1736607997417,29.083884,188.43,188.29,13.2773]
[1736607997642,29.083884,188.43,188.3,8.86361511]
[1736607998225,8.1389,188.42,188.29,13.2773]
[1736607998422,8.1389,188.42,188.32,8.86361511]
[1736607999754,8.1389,188.42,188.33,8.86361511]
[1736608000133,8.1389,188.42,188.34,8.86361511]
[1736608003937,8.1389,188.42,188.29,37.053584]
[1736608004247,8.1389,188.42,188.34,8.86361511]
[1736608008158,8.1389,188.42,188.32,20.0]
[1736608008343,8.1389,188.42,188.33,8.86361511]
[1736608011951,8.1389,188.42,188.34,8.86361511]
[1736608013259,8.1389,188.42,188.32,20.0]
[1736608013444,8.1389,188.42,188.34,8.86361511]
[1736608013641,8.1389,188.42,188.33,8.86361511]
[1736608013848,8.1389,188.42,188.32,20.0]
[1736608014034,8.1389,188.42,188.33,8.86361511]
[1736608015370,8.1389,188.42,188.32,28.86361511]
[1736608016061,8.1389,188.42,188.3,8.86361511]
[1736608016269,23.776884,188.41,188.29,8.86361511]
[1736608016941,23.776884,188.41,188.25,27.07356575]
[1736608017159,6.4295,188.37,188.27,8.86361511]
[1736608017553,6.4295,188.37,188.26,8.86361511]
[1736608017751,1.5125,188.36,188.26,8.86361511]
[1736608017954,1.5125,188.36,188.25,22.14351511]
[1736608018465,1.5125,188.36,188.22,8.07168232]
[1736608018639,20.0,188.34,188.24,8.86361511]
[1736608019033,20.0,188.34,188.22,16.93529743]
[1736608019242,6.8216,188.36,188.22,8.07168232]
[1736608019243,6.4295,188.31,188.22,8.07168232]
[1736608019455,1.5125,188.3,188.22,8.07168232]
[1736608019958,1.5125,188.3,188.19,8.86361511]
[1736608020564,1.5125,188.3,188.18,8.86361511]
[1736608020765,20.0,188.28,188.17,65.32361511]
[1736608021944,20.0,188.28,188.17,56.46]
[1736608022870,20.0,188.28,188.17,65.32361511]
[1736608023174,20.0,188.28,188.18,8.86361511]
[1736608023859,1.5125,188.3,188.21,8.86361511]
[1736608024052,1.5125,188.3,188.22,8.86361511]
[1736608025678,1.5125,188.3,188.21,8.86361511]
[1736608026273,1.5125,188.3,188.17,148.6856]
[1736608026573,1.5125,188.3,188.18,8.86361511]
[1736608029174,1.5125,188.3,188.19,8.86361511]
[1736608030851,1.5125,188.3,188.2,8.86361511]
[1736608031057,1.5125,188.3,188.21,8.86361511]
[1736608031260,1.5125,188.3,188.22,8.86361511]
[1736608033780,1.5125,188.3,188.21,8.86361511]
[1736608034366,1.5125,188.3,188.2,8.86361511]
[1736608035078,1.5125,188.3,188.21,8.86361511]
[1736608040656,1.5125,188.3,188.22,8.86361511]
[1736608041668,1.5125,188.3,188.21,8.86361511]
[1736608042272,1.5125,188.3,188.2,8.86361511]
[1736608045265,1.5125,188.3,188.21,8.86361511]
[1736608052201,1.5125,188.3,188.24,8.86361511]
[1736608052408,6.4295,188.31,188.26,8.86361511]
[1736608052574,1.6468,188.34,188.26,8.86361511]
[1736608053698,1.6468,188.34,188.27,8.86361511]
[1736608054369,1.6468,188.34,188.29,8.86361511]
[1736608055094,1.6468,188.34,188.28,8.86361511]
[1736608057977,1.6468,188.34,188.24,159.97334639]
[1736608058183,20.0,188.38,188.31,8.86361511]
[1736608060210,20.0,188.38,188.3,8.86361511]
[1736608060417,20.0,188.38,188.29,8.86361511]
[1736608060579,20.0,188.38,188.27,148.6783]
[1736608060782,20.0,188.38,188.27,22.14191511]
[1736608061190,20.0,188.38,188.27,13.2783]
[1736608061391,20.0,188.38,188.27,22.14191511]
[1736608063792,20.34321817,188.37,188.27,22.14191511]
[1736608063993,20.34321817,188.37,188.27,13.2783]
[1736608064197,20.34321817,188.37,188.26,156.19637871]
[1736608064198,20.34321817,188.37,188.31,8.86361511]
[1736608064597,20.34321817,188.37,188.33,8.86361511]
[1736608065703,20.34321817,188.37,188.34,8.86361511]
[1736608066028,20.34321817,188.37,188.33,8.86361511]
[1736608067909,20.34321817,188.37,188.32,8.86361511]
[1736608068092,20.34321817,188.37,188.31,22.13911511]
[1736608070911,20.34321817,188.37,188.28,13.2778]
[1736608071110,20.34321817,188.37,188.29,8.86361511]
[1736608073818,20.34321817,188.37,188.3,8.86361511]
[1736608076021,20.34321817,188.37,188.29,8.86361511]
[1736608076424,20.34321817,188.37,188.27,23.776884]
[1736608076598,20.34321817,188.37,188.27,32.64049911]
[1736608076790,20.34321817,188.37,188.28,8.86361511]
[1736608078892,20.34321817,188.37,188.27,32.64049911]
[1736608079727,20.34321817,188.37,188.28,8.86361511]
[1736608080195,20.34321817,188.37,188.27,32.64049911]
[1736608080397,1.5436,188.36,188.27,8.86361511]
[1736608080625,6.6388,188.35,188.25,22.14381511]
[1736608081505,6.6388,188.35,188.24,8.86361511]
[1736608081829,6.6388,188.35,188.23,8.86361511]
[1736608083010,6.6388,188.35,188.24,8.86361511]
[1736608083827,6.6388,188.35,188.26,8.86361511]
[1736608085502,6.6388,188.35,188.27,8.86361511]
[1736608086204,6.6388,188.35,188.28,8.86361511]
[1736608086392,6.6388,188.35,188.27,8.86361511]
[1736608091830,6.6388,188.35,188.26,8.86361511]
[1736608092535,6.6388,188.35,188.25,33.4369498]
[1736608092848,6.6388,188.35,188.26,8.86361511]
[1736608095605,6.6388,188.35,188.25,33.4369498]
[1736608097114,6.6388,188.35,188.25,32.64049911]
[1736608097424,6.6388,188.35,188.24,135.4]
[1736608098631,11.9482,188.35,188.22,8.86361511]
[1736608098820,20.0,188.32,188.2,8.86361511]
[1736608100040,20.0,188.32,188.21,8.86361511]
[1736608100508,20.0,188.32,188.22,8.86361511]
[1736608105145,8.0391,188.31,188.2,8.86361511]
[1736608109048,8.0391,188.31,188.21,8.86361511]
[1736608118435,8.0391,188.31,188.18,13.285]
[1736608118635,8.0391,188.31,188.18,22.14861511]
[1736608120449,25.365384,188.3,188.15,13.2872]
[1736608120760,25.365384,188.3,188.17,8.86361511]
[1736608123241,25.365384,188.3,188.18,28.86361511]
[1736608124167,25.365384,188.3,188.18,20.0]
[1736608124365,8.1073,188.29,188.18,20.0]
[1736608128373,8.1073,188.29,188.16,8.86361511]
[1736608130985,8.1073,188.29,188.15,13.2872]
[1736608131279,8.1073,188.29,188.21,8.86361511]
[1736608131881,8.1073,188.29,188.22,8.86361511]
[1736608134189,8.1073,188.29,188.2,8.86361511]
[1736608136983,51.321884,188.25,188.14,8.07168232]
[1736608137352,23.776884,188.23,188.14,8.07168232]
[1736608137554,6.0305,188.22,188.14,8.07168232]
[1736608138266,20.0,188.19,188.14,8.07168232]
[1736608138688,20.0,188.19,188.07,8.86361511]
[1736608144166,51.321884,188.18,188.07,8.86361511]
[1736608144371,51.321884,188.18,188.02,8.07168232]
[1736608144372,1.5145,188.14,188.02,8.07168232]
[1736608145090,1.5145,188.14,188.01,16.14336465]
[1736608145091,1.5145,188.14,188.01,23.776884]
[1736608145295,1.5145,188.14,187.99,13.2984]
[1736608145470,1.5145,188.14,187.95,137.50455504]
[1736608145471,6.0305,188.11,187.96,13.3005]
[1736608145671,6.0305,188.11,187.98,8.86361511]
[1736608146576,1.5519,188.1,187.98,8.86361511]
[1736608147513,1.5519,188.1,188.0,20.0]
[1736608149198,1.5519,188.1,188.02,8.86361511]
[1736608149500,1.5519,188.1,188.04,8.86361511]
[1736608149996,1.5519,188.1,188.03,8.86361511]
[1736608151498,1.5519,188.1,188.04,8.86361511]
[1736608152984,1.5519,188.1,188.01,37.073984]
[1736608152985,1.5519,188.1,188.06,8.86361511]
[1736608158003,21.65505896,188.12,188.09,8.86361511]
[1736608158210,21.65505896,188.12,188.03,13.2952]
[1736608158211,21.65505896,188.12,188.11,8.86361511]
[1736608158394,21.65505896,188.12,188.11,32.64049911]
[1736608159289,18.81255896,188.12,188.11,168.04049911]
[1736608159485,8.0651,188.28,188.15,23.776884]
[1736608159791,8.0651,188.28,188.18,8.86361511]
[1736608160196,8.0651,188.28,188.17,8.86361511]
[1736608160598,26.68846038,188.28,188.17,8.86361511]
[1736608161203,26.68846038,188.28,188.16,8.86361511]
[1736608161702,23.776884,188.27,188.13,13.2879]
[1736608162005,23.776884,188.27,188.14,8.86361511]
[1736608163385,29.088584,188.27,188.14,8.86361511]
[1736608165093,5.3117,188.27,188.14,8.86361511]
[1736608165292,23.776884,188.26,188.14,8.86361511]
[1736608169511,23.776884,188.26,188.13,8.86361511]
[1736608174214,20.0,188.23,188.11,23.776884]
[1736608174412,20.0,188.23,188.12,8.86361511]
[1736608177215,20.0,188.23,188.13,8.86361511]
[1736608180136,20.0,188.23,188.12,8.86361511]
[1736608185737,20.0,188.23,188.1,22.15431511]
[1736608186412,20.0,188.23,188.11,8.86361511]
[1736608186924,20.0,188.23,188.1,22.15431511]
[1736608187127,25.3128,188.23,188.1,13.2907]
[1736608187633,25.3128,188.23,188.09,10.45321511]
[1736608189420,25.3128,188.23,188.1,8.86361511]
[1736608197045,25.3128,188.23,188.09,1.5896]
[1736608197340,25.3128,188.23,188.1,8.86361511]
[1736608200350,26.68846038,188.28,188.15,8.86361511]
[1736608200526,26.68846038,188.28,188.16,8.86361511]
[1736608200724,20.0,188.25,188.17,8.86361511]
[1736608201035,26.68846038,188.28,188.17,8.86361511]
[1736608201230,23.776884,188.27,188.15,8.86361511]
[1736608201441,23.776884,188.27,188.11,148.69]
[1736608201660,1.5923,188.23,188.09,1.5896]
[1736608201966,6.3703,188.22,188.1,8.86361511]
[1736608202933,20.0,188.18,188.06,22.15431511]
[1736608203122,1.5923,188.17,188.06,22.15431511]
[1736608203328,1.5923,188.17,188.06,8.86361511]
[1736608203942,6.6251,188.16,188.05,8.86361511]
[1736608207455,6.6251,188.16,188.03,23.776884]
[1736608207647,6.6251,188.16,188.05,8.86361511]
[1736608210067,6.6251,188.16,188.03,8.86361511]
[1736608211970,23.776884,188.15,188.0,136.9218]
[1736608212181,23.776884,188.15,188.02,8.86361511]
[1736608212466,20.0,188.12,188.02,8.86361511]
[1736608214046,20.0,188.12,188.0,1.5218]
[1736608214047,20.0,188.12,188.03,8.86361511]
[1736608216873,20.0,188.12,188.02,8.86361511]
[1736608218277,1.5387,188.11,188.01,8.86361511]
[1736608221859,6.3382,188.1,188.01,20.0]
[1736608222081,6.3382,188.1,188.01,28.86361511]
[1736608224670,20.0,188.07,187.96,135.4]
[1736608224870,20.0,188.07,187.99,8.86361511]
[1736608225984,20.0,188.07,187.95,148.7012]
[1736608226188,1.5387,188.06,187.97,8.86361511]
[1736608226685,35.246784,188.05,187.92,8.86361511]
[1736608227074,6.1522,188.05,187.95,8.86361511]
[1736608232063,6.08821957,188.05,187.95,8.86361511]
[1736608233284,6.08821957,188.05,187.94,20.0]
[1736608233470,6.08821957,188.05,187.95,8.86361511]
[1736608234303,6.08821957,188.05,187.94,20.0]
[1736608234674,29.86510357,188.05,187.94,20.0]
[1736608235273,30.611784,188.04,187.9,135.4]
[1736608235497,30.611784,188.04,187.92,8.86361511]
[1736608235668,30.611784,188.04,187.93,20.0]
[1736608236202,30.611784,188.04,187.92,8.86361511]
[1736608236383,20.0,188.01,187.88,13.3062]
[1736608236582,20.0,188.01,187.91,8.86361511]
[1736608236778,20.0,188.01,187.92,8.86361511]
[1736608238498,20.0,188.01,187.91,8.86361511]
[1736608239481,7.7969,188.0,187.88,13.3062]
[1736608239810,7.7969,188.0,187.9,8.86361511]
[1736608240306,7.7969,188.0,187.89,8.86361511]
[1736608241195,7.7969,188.0,187.86,23.776884]
[1736608241503,23.776884,187.99,187.89,8.86361511]
[1736608241685,23.776884,187.99,187.88,8.86361511]
[1736608243906,23.776884,187.99,187.89,8.86361511]
[1736608247417,23.776884,187.99,187.88,8.86361511]
[1736608248085,7.7969,188.0,187.89,8.86361511]
[1736608248605,23.776884,187.99,187.85,13.3082]
[1736608249116,20.0,187.96,187.86,8.86361511]
[1736608250494,20.0,187.96,187.87,8.86361511]
[1736608251722,13.1162,188.0,187.9,8.86361511]
[1736608251886,7.7969,188.0,187.92,8.86361511]
[1736608252083,7.7969,188.0,187.93,8.86361511]
[1736608252616,7.7969,188.0,187.91,8.86361511]
[1736608254701,7.7969,188.0,187.9,8.86361511]
[1736608257921,7.7969,188.0,187.91,8.86361511]
[1736608260539,7.7969,188.0,187.9,8.86361511]
[1736608260842,7.7969,188.0,187.9,20.0]
[1736608261622,7.7969,188.0,187.9,28.86361511]
[1736608264042,7.7969,188.0,187.91,23.776884]
[1736608264250,7.7969,188.0,187.95,8.86361511]
[1736608264622,7.7969,188.0,187.91,23.776884]
[1736608264623,7.7969,188.0,187.94,28.86361511]
[1736608265714,7.7969,188.0,187.94,8.86361511]
[1736608266121,7.7969,188.0,187.91,13.3042]
[1736608266427,7.7969,188.0,187.9,8.86361511]
[1736608267035,7.7969,188.0,187.89,8.86361511]
[1736608267240,7.7969,188.0,187.88,22.16971511]
[1736608268444,7.7969,188.0,187.89,8.86361511]
[1736608269342,7.7969,188.0,187.9,8.86361511]
[1736608270250,7.7969,188.0,187.89,8.86361511]
[1736608270453,7.7969,188.0,187.88,22.16971511]
[1736608270822,7.7969,188.0,187.88,8.86361511]
[1736608271330,7.7969,188.0,187.89,8.86361511]
[1736608274150,7.7969,188.0,187.88,28.86361511]
[1736608274737,7.7969,188.0,187.92,8.86361511]
[1736608275636,7.7969,188.0,187.94,8.86361511]
[1736608276324,7.7969,188.0,187.88,159.176884]
[1736608276527,7.7969,188.0,187.93,8.86361511]
[1736608277363,7.7969,188.0,187.91,8.86361511]
[1736608277727,7.7969,188.0,187.9,22.16811511]
[1736608278440,7.7969,188.0,187.9,8.86361511]
[1736608278639,7.7969,188.0,187.89,8.86361511]
[1736608280459,7.7969,188.0,187.85,8.07168232]
[1736608280760,7.7969,188.0,187.88,20.0]
[1736608281123,23.776884,187.99,187.86,8.86361511]
[1736608281323,6.5461,187.97,187.86,8.86361511]
[1736608283983,6.5461,187.97,187.87,8.86361511]
[1736608284167,6.5461,187.97,187.88,8.86361511]
[1736608285142,6.5461,187.97,187.9,8.86361511]
[1736608286347,6.5461,187.97,187.89,28.86361511]
[1736608287265,6.5461,187.97,187.89,20.0]
[1736608288670,6.5461,187.97,187.89,28.86361511]
[1736608290480,6.5461,187.97,187.88,8.86361511]
[1736608295077,6.5461,187.97,187.9,8.86361511]
[1736608295293,1.6189,187.98,187.94,8.86361511]
[1736608295883,1.6189,187.98,187.93,8.86361511]
[1736608296193,1.6189,187.98,187.89,23.776884]
[1736608296389,1.6189,187.98,187.93,8.86361511]
[1736608296793,1.6189,187.98,187.92,28.86361511]
[1736608297977,1.6189,187.98,187.91,8.86361511]
[1736608298180,1.6189,187.98,187.9,8.86361511]
[1736608300078,1.6189,187.98,187.91,28.86361511]
[1736608302004,1.6189,187.98,187.91,20.0]
[1736608307292,1.6189,187.98,187.88,13.3059]
[1736608307625,1.6189,187.98,187.88,22.16951511]
[1736608308419,1.6189,187.98,187.89,8.86361511]
[1736608310705,1.6189,187.98,187.9,8.86361511]
[1736608311191,1.6189,187.98,187.89,8.86361511]
[1736608315725,1.6189,187.98,187.9,8.86361511]
[1736608316020,1.6189,187.98,187.89,8.86361511]
[1736608316632,1.6189,187.98,187.88,22.16951511]
[1736608320125,1.6189,187.98,187.9,8.86361511]
[1736608323235,1.6189,187.98,187.89,8.86361511]
[1736608329341,1.6189,187.98,187.9,8.86361511]
[1736608336453,1.6189,187.98,187.89,8.86361511]
[1736608341629,1.6189,187.98,187.88,22.16951511]
[1736608343554,1.6189,187.98,187.89,8.86361511]
[1736608347140,1.6189,187.98,187.92,8.86361511]
[1736608347661,1.6189,187.98,187.93,8.86361511]
[1736608348573,1.6189,187.98,187.92,8.86361511]
[1736608349095,1.6189,187.98,187.89,8.07168232]
[1736608349270,1.6189,187.98,187.9,8.07168232]
[1736608349588,6.4197,187.97,187.9,8.07168232]
[1736608350101,6.4197,187.97,187.88,16.93529743]
[1736608351358,6.4197,187.97,187.88,8.07168232]
[1736608351662,6.4197,187.97,187.88,8.86361511]
[1736608352286,6.4197,187.97,187.87,8.07168232]
[1736608352470,1.524,187.96,187.86,16.93529743]
[1736608353098,1.524,187.96,187.86,8.86361511]
[1736608357702,1.524,187.96,187.87,8.86361511]
[1736608357905,1.524,187.96,187.88,8.86361511]
[1736608358303,1.524,187.96,187.89,8.86361511]
[1736608359006,1.524,187.96,187.88,8.86361511]
[1736608359196,1.524,187.96,187.87,8.86361511]
[1736608361489,1.524,187.96,187.86,8.86361511]
[1736608362511,1.524,187.96,187.86,20.0]
[1736608362998,1.45999575,187.96,187.86,28.86361511]
[1736608366315,20.0,187.94,187.85,8.86361511]
[1736608366491,20.0,187.94,187.82,156.78208232]
[1736608366687,6.1018,187.93,187.84,8.86361511]
[1736608367116,1.5601,187.92,187.82,13.3104]
[1736608367422,1.5601,187.92,187.82,22.17401511]
[1736608369612,1.5601,187.92,187.84,8.86361511]
[1736608372596,1.5601,187.92,187.83,8.86361511]
[1736608372796,1.5601,187.92,187.85,8.86361511]
[1736608375702,1.5601,187.92,187.86,8.86361511]
[1736608379542,1.5601,187.92,187.87,8.86361511]
[1736608381404,1.5601,187.92,187.88,8.86361511]
[1736608382114,20.0,187.97,187.88,8.86361511]
[1736608382634,20.0,187.97,187.89,8.86361511]
[1736608383210,8.1378,188.0,187.89,8.86361511]
[1736608384210,8.1378,188.0,187.9,8.86361511]
[1736608388031,20.0,187.91,187.83,8.07168232]
[1736608388532,20.0,187.91,187.8,8.91691511]
[1736608389036,20.0,187.91,187.8,0.0533]
[1736608390321,5.3214,187.92,187.8,0.0533]
[1736608390322,21.5249,187.9,187.8,0.0533]
[1736608392948,6.3252,187.89,187.8,0.0533]
[1736608410546,20.0,187.85,187.8,0.0533]